[Event "Titled Tuesday Blitz February 07 Late 2023"]
[White "Dominguez Perez, Leinier"]
[Black "Klose, Eli"]
[WhiteFideId "3503240"]
[BlackFideId "16242955"]
[WhiteElo "2739"]
[BlackElo "1519"]
[Result "1-0"]
[Round "02"]
[TimeControl "180+2"]
[Date "2023.02.07"]
[WhiteClock "0:00:28"]
[BlackClock "0:00:08"]

1. d4 {[%clk 0:03:00]}  Nf6 {[%clk 0:02:59]} 2. Nf3 {[%clk 0:03:01]}  c5 {[%clk 0:02:55]} 3. e3 {[%clk 0:03:01]}  b6 {[%clk 0:02:53]} 4. Bd3 {[%clk 0:03:01]}  e6 {[%clk 0:02:51]} 5. O-O {[%clk 0:03:00]}  Be7 {[%clk 0:02:51]} 6. c4 {[%clk 0:02:59]}  O-O {[%clk 0:02:46]} 7. Nc3 {[%clk 0:02:52]}  cxd4 {[%clk 0:02:42]} 8. exd4 {[%clk 0:02:52]}  d5 {[%clk 0:02:42]} 9. cxd5 {[%clk 0:02:52]}  Nxd5 {[%clk 0:02:20]} 10. Ne5 {[%clk 0:02:51]}  Bb7 {[%clk 0:02:01]} 11. Qg4 {[%clk 0:02:50]}  f5 {[%clk 0:01:57]} 12. Qe2 {[%clk 0:02:48]}  Bf6 {[%clk 0:01:49]} 13. Rd1 {[%clk 0:02:39]}  Nc6 {[%clk 0:01:40]} 14. Bc4 {[%clk 0:02:27]}  Nce7 {[%clk 0:01:15]} 15. Nf3 {[%clk 0:02:03]}  Qc8 {[%clk 0:00:28]} 16. Ng5 {[%clk 0:01:44]}  Nxc3 {[%clk 0:00:18]} 17. Bxe6+ {[%clk 0:01:35]}  Kh8 {[%clk 0:00:18]} 18. Qh5 {[%clk 0:01:18]}  Bxg5 {[%clk 0:00:10]} 19. Bxc8 {[%clk 0:01:16]}  Raxc8 {[%clk 0:00:05]} 20. bxc3 {[%clk 0:01:04]}  Bxc1 {[%clk 0:00:05]} 21. Raxc1 {[%clk 0:01:05]}  Nd5 {[%clk 0:00:04]} 22. Qh4 {[%clk 0:00:43]}  Nxc3 {[%clk 0:00:04]} 23. Rxc3 {[%clk 0:00:44]}  Rxc3 {[%clk 0:00:04]} 24. Qe7 {[%clk 0:00:44]}  Rfc8 {[%clk 0:00:02]} 25. Qxb7 {[%clk 0:00:40]}  Rc1 {[%clk 0:00:03]} 26. Qf3 {[%clk 0:00:36]}  Rxd1+ {[%clk 0:00:03]} 27. Qxd1 {[%clk 0:00:36]}  g6 {[%clk 0:00:04]} 28. d5 {[%clk 0:00:35]}  Kg8 {[%clk 0:00:04]} 29. d6 {[%clk 0:00:35]}  Kf8 {[%clk 0:00:04]} 30. d7 {[%clk 0:00:35]}  Rd8 {[%clk 0:00:05]} 31. Qd6+ {[%clk 0:00:35]}  Kf7 {[%clk 0:00:06]} 32. h4 {[%clk 0:00:34]}  b5 {[%clk 0:00:05]} 33. Kh2 {[%clk 0:00:31]}  a5 {[%clk 0:00:06]} 34. Kg3 {[%clk 0:00:29]}  b4 {[%clk 0:00:06]} 35. Kf4 {[%clk 0:00:29]}  h6 {[%clk 0:00:07]} 36. Ke5 {[%clk 0:00:29]}  a4 {[%clk 0:00:08]} 37. Qf6+ {[%clk 0:00:28]} 1-0


[Site "https://www.chess.com"]

[Event "Titled Tuesday Blitz February 07 Late 2023"]
[White "Sjugirov, Sanan"]
[Black "Chylewski, Patryk"]
[WhiteFideId "4189302"]
[BlackFideId "1186191"]
[WhiteElo "2712"]
[BlackElo "2281"]
[Result "1-0"]
[Round "02"]
[TimeControl "180+2"]
[Date "2023.02.07"]
[WhiteClock "0:01:28"]
[BlackClock "0:00:03"]

1. d4 {[%clk 0:03:00]}  Nf6 {[%clk 0:02:59]} 2. c4 {[%clk 0:03:00]}  e6 {[%clk 0:03:00]} 3. Nf3 {[%clk 0:03:00]}  d5 {[%clk 0:02:56]} 4. Nc3 {[%clk 0:03:00]}  a6 {[%clk 0:02:56]} 5. cxd5 {[%clk 0:03:00]}  exd5 {[%clk 0:02:57]} 6. Bg5 {[%clk 0:03:00]}  Be6 {[%clk 0:02:57]} 7. Bxf6 {[%clk 0:02:58]}  Qxf6 {[%clk 0:02:56]} 8. Qb3 {[%clk 0:02:59]}  Ra7 {[%clk 0:02:56]} 9. a3 {[%clk 0:02:53]}  Qd8 {[%clk 0:02:53]} 10. Qc2 {[%clk 0:02:52]}  Bd6 {[%clk 0:02:44]} 11. e4 {[%clk 0:02:51]}  dxe4 {[%clk 0:02:40]} 12. Nxe4 {[%clk 0:02:52]}  Be7 {[%clk 0:02:31]} 13. O-O-O {[%clk 0:02:49]}  O-O {[%clk 0:02:19]} 14. h4 {[%clk 0:02:43]}  Bf5 {[%clk 0:02:04]} 15. Bd3 {[%clk 0:02:38]}  h6 {[%clk 0:01:33]} 16. Rhg1 {[%clk 0:02:26]}  Bxh4 {[%clk 0:01:29]} 17. Qc5 {[%clk 0:02:02]}  Bxe4 {[%clk 0:01:13]} 18. Bxe4 {[%clk 0:02:02]}  b6 {[%clk 0:01:08]} 19. Qf5 {[%clk 0:01:59]}  g6 {[%clk 0:01:06]} 20. Qh3 {[%clk 0:01:58]}  Bg5+ {[%clk 0:00:53]} 21. Kb1 {[%clk 0:01:58]}  Re8 {[%clk 0:00:44]} 22. Bc2 {[%clk 0:01:55]}  Nd7 {[%clk 0:00:31]} 23. Nxg5 {[%clk 0:01:55]}  hxg5 {[%clk 0:00:27]} 24. Rh1 {[%clk 0:01:54]}  Kf8 {[%clk 0:00:19]} 25. Qh6+ {[%clk 0:01:46]}  Ke7 {[%clk 0:00:18]} 26. Qxg5+ {[%clk 0:01:45]}  Nf6 {[%clk 0:00:14]} 27. Ba4 {[%clk 0:01:30]}  Rh8 {[%clk 0:00:03]} 28. Rde1+ {[%clk 0:01:28]} 1-0


[Site "https://www.chess.com"]

[Event "Titled Tuesday Blitz February 07 Late 2023"]
[White "Olenik Campa, Rudi"]
[Black "Esipenko, Andrey"]
[WhiteFideId "14633264"]
[BlackFideId "24175439"]
[WhiteElo "2356"]
[BlackElo "2679"]
[Result "0-1"]
[Round "02"]
[TimeControl "180+2"]
[Date "2023.02.07"]
[WhiteClock "0:00:05"]
[BlackClock "0:00:06"]

1. e4 {[%clk 0:03:00]}  e5 {[%clk 0:02:56]} 2. Nf3 {[%clk 0:03:00]}  Nc6 {[%clk 0:02:57]} 3. Bc4 {[%clk 0:03:00]}  Nf6 {[%clk 0:02:56]} 4. d3 {[%clk 0:03:00]}  Bc5 {[%clk 0:02:57]} 5. O-O {[%clk 0:02:59]}  d6 {[%clk 0:02:54]} 6. a4 {[%clk 0:02:58]}  a5 {[%clk 0:02:53]} 7. c3 {[%clk 0:02:58]}  h6 {[%clk 0:02:53]} 8. Nbd2 {[%clk 0:02:57]}  O-O {[%clk 0:02:53]} 9. Re1 {[%clk 0:02:56]}  Ng4 {[%clk 0:02:52]} 10. Re2 {[%clk 0:02:56]}  Kh8 {[%clk 0:02:52]} 11. h3 {[%clk 0:02:56]}  f5 {[%clk 0:02:51]} 12. d4 {[%clk 0:02:40]}  exd4 {[%clk 0:02:49]} 13. cxd4 {[%clk 0:02:40]}  Nxd4 {[%clk 0:02:43]} 14. Nxd4 {[%clk 0:02:35]}  Nxf2 {[%clk 0:02:43]} 15. Rxf2 {[%clk 0:02:26]}  Bxd4 {[%clk 0:02:44]} 16. e5 {[%clk 0:02:14]}  dxe5 {[%clk 0:02:36]} 17. Qe2 {[%clk 0:02:10]}  Qf6 {[%clk 0:02:12]} 18. Nf3 {[%clk 0:02:08]}  Bxf2+ {[%clk 0:02:11]} 19. Qxf2 {[%clk 0:02:08]}  e4 {[%clk 0:02:11]} 20. Nh4 {[%clk 0:01:48]}  Kh7 {[%clk 0:01:49]} 21. g3 {[%clk 0:01:43]}  Be6 {[%clk 0:01:34]} 22. Bxe6 {[%clk 0:01:41]}  Qxe6 {[%clk 0:01:35]} 23. Bd2 {[%clk 0:01:35]}  b6 {[%clk 0:01:26]} 24. Ng2 {[%clk 0:01:35]}  Rad8 {[%clk 0:01:25]} 25. Bc3 {[%clk 0:01:34]}  g5 {[%clk 0:01:21]} 26. Re1 {[%clk 0:01:29]}  Rd3 {[%clk 0:01:19]} 27. h4 {[%clk 0:01:11]}  f4 {[%clk 0:00:59]} 28. hxg5 {[%clk 0:00:53]}  Rxg3 {[%clk 0:00:57]} 29. Qd4 {[%clk 0:00:44]}  Rxg5 {[%clk 0:00:18]} 30. Rxe4 {[%clk 0:00:43]}  Qf7 {[%clk 0:00:14]} 31. Kf2 {[%clk 0:00:18]}  c5 {[%clk 0:00:13]} 32. Qd6 {[%clk 0:00:13]}  Rg6 {[%clk 0:00:13]} 33. Qe5 {[%clk 0:00:13]}  Rg5 {[%clk 0:00:12]} 34. Qd6 {[%clk 0:00:11]}  Rg6 {[%clk 0:00:07]} 35. Qe5 {[%clk 0:00:11]}  f3 {[%clk 0:00:06]} 36. Nh4 {[%clk 0:00:09]}  Rg2+ {[%clk 0:00:05]} 37. Nxg2 {[%clk 0:00:08]}  fxg2+ {[%clk 0:00:05]} 38. Kxg2 {[%clk 0:00:08]}  Qf1+ {[%clk 0:00:05]} 39. Kg3 {[%clk 0:00:08]}  Rf3+ {[%clk 0:00:05]} 40. Kg4 {[%clk 0:00:05]}  Qh3# {[%clk 0:00:06]} 0-1


[Site "https://www.chess.com"]

[Event "Titled Tuesday Blitz February 07 Late 2023"]
[White "Kamsky, Gata"]
[Black "Korchmar, Vasiliy"]
[WhiteFideId "2000024"]
[BlackFideId "24131750"]
[WhiteElo "2665"]
[BlackElo "2438"]
[Result "1/2-1/2"]
[Round "02"]
[TimeControl "180+2"]
[Date "2023.02.07"]
[WhiteClock "0:00:17"]
[BlackClock "0:00:02"]

1. d4 {[%clk 0:03:00]}  d5 {[%clk 0:02:59]} 2. Bf4 {[%clk 0:02:58]}  Nf6 {[%clk 0:02:58]} 3. e3 {[%clk 0:02:58]}  c5 {[%clk 0:02:59]} 4. c3 {[%clk 0:02:57]}  Nc6 {[%clk 0:02:59]} 5. Nd2 {[%clk 0:02:56]}  Bf5 {[%clk 0:02:57]} 6. Ngf3 {[%clk 0:02:55]}  Qb6 {[%clk 0:02:53]} 7. dxc5 {[%clk 0:02:55]}  Qxc5 {[%clk 0:02:46]} 8. Qb3 {[%clk 0:02:53]}  Qb6 {[%clk 0:02:15]} 9. Qxb6 {[%clk 0:02:39]}  axb6 {[%clk 0:02:15]} 10. Nd4 {[%clk 0:02:38]}  Bd7 {[%clk 0:01:20]} 11. Nb5 {[%clk 0:02:35]}  Rc8 {[%clk 0:01:10]} 12. Be2 {[%clk 0:02:18]}  e5 {[%clk 0:01:05]} 13. Bg3 {[%clk 0:02:14]}  Be6 {[%clk 0:00:59]} 14. O-O {[%clk 0:02:10]}  Be7 {[%clk 0:00:56]} 15. Rfd1 {[%clk 0:02:04]}  O-O {[%clk 0:00:55]} 16. Nf3 {[%clk 0:01:48]}  Nd7 {[%clk 0:00:54]} 17. h3 {[%clk 0:01:42]}  f6 {[%clk 0:00:54]} 18. Ne1 {[%clk 0:01:17]}  Nc5 {[%clk 0:00:52]} 19. Nd3 {[%clk 0:01:15]}  Rfd8 {[%clk 0:00:47]} 20. f3 {[%clk 0:01:11]}  Na5 {[%clk 0:00:37]} 21. Bf2 {[%clk 0:01:04]}  Nc4 {[%clk 0:00:33]} 22. b3 {[%clk 0:01:03]}  Nd6 {[%clk 0:00:23]} 23. Nxd6 {[%clk 0:01:02]}  Bxd6 {[%clk 0:00:22]} 24. Nb4 {[%clk 0:00:59]}  Bf8 {[%clk 0:00:17]} 25. Rac1 {[%clk 0:00:57]}  Rc7 {[%clk 0:00:12]} 26. Rd2 {[%clk 0:00:56]}  Nxb3 {[%clk 0:00:06]} 27. axb3 {[%clk 0:00:38]}  Bxb4 {[%clk 0:00:06]} 28. Rdc2 {[%clk 0:00:35]}  Rdc8 {[%clk 0:00:06]} 29. c4 {[%clk 0:00:29]}  dxc4 {[%clk 0:00:06]} 30. Bxc4 {[%clk 0:00:27]}  Bxc4 {[%clk 0:00:05]} 31. Rxc4 {[%clk 0:00:25]}  Rxc4 {[%clk 0:00:05]} 32. Rxc4 {[%clk 0:00:26]}  Rxc4 {[%clk 0:00:05]} 33. bxc4 {[%clk 0:00:26]}  Kf7 {[%clk 0:00:04]} 34. Kf1 {[%clk 0:00:25]}  Ke6 {[%clk 0:00:05]} 35. Ke2 {[%clk 0:00:26]}  Kd6 {[%clk 0:00:05]} 36. Kd3 {[%clk 0:00:25]}  Bc5 {[%clk 0:00:05]} 37. Be1 {[%clk 0:00:23]}  Kc6 {[%clk 0:00:05]} 38. e4 {[%clk 0:00:23]}  b5 {[%clk 0:00:05]} 39. Bd2 {[%clk 0:00:21]}  bxc4+ {[%clk 0:00:05]} 40. Kxc4 {[%clk 0:00:21]}  b5+ {[%clk 0:00:05]} 41. Kb3 {[%clk 0:00:21]}  Bd4 {[%clk 0:00:04]} 42. Bb4 {[%clk 0:00:21]}  Bc5 {[%clk 0:00:04]} 43. Ba5 {[%clk 0:00:20]}  Bd6 {[%clk 0:00:04]} 44. Bd2 {[%clk 0:00:20]}  Be7 {[%clk 0:00:04]} 45. Be3 {[%clk 0:00:19]}  g6 {[%clk 0:00:04]} 46. g4 {[%clk 0:00:19]}  Bd6 {[%clk 0:00:03]} 47. Bd2 {[%clk 0:00:18]}  Bc5 {[%clk 0:00:03]} 48. Bh6 {[%clk 0:00:18]}  Be7 {[%clk 0:00:02]} 49. Be3 {[%clk 0:00:17]}  Kb7 {[%clk 0:00:01]} 50. Bd2 {[%clk 0:00:17]}  Kc6 {[%clk 0:00:02]} 51. Be3 {[%clk 0:00:17]} 1/2-1/2


[Site "https://www.chess.com"]

[Event "Titled Tuesday Blitz February 07 Late 2023"]
[White "Czernek, Tymon"]
[Black "Urazayev, Arystanbek"]
[WhiteFideId "1199510"]
[BlackFideId "13709810"]
[WhiteElo "2314"]
[BlackElo "2460"]
[Result "0-1"]
[Round "02"]
[TimeControl "180+2"]
[Date "2023.02.07"]
[WhiteClock "0:01:01"]
[BlackClock "0:01:54"]

1. e4 {[%clk 0:03:00]}  e5 {[%clk 0:03:00]} 2. Nf3 {[%clk 0:03:01]}  Nc6 {[%clk 0:03:00]} 3. Bc4 {[%clk 0:03:01]}  Nf6 {[%clk 0:03:00]} 4. d3 {[%clk 0:03:01]}  Bc5 {[%clk 0:03:00]} 5. O-O {[%clk 0:03:01]}  d6 {[%clk 0:03:00]} 6. c3 {[%clk 0:03:02]}  a5 {[%clk 0:03:00]} 7. Nbd2 {[%clk 0:02:57]}  O-O {[%clk 0:02:58]} 8. h3 {[%clk 0:02:56]}  h6 {[%clk 0:02:58]} 9. Re1 {[%clk 0:02:57]}  a4 {[%clk 0:02:57]} 10. Bb5 {[%clk 0:02:48]}  Bd7 {[%clk 0:02:56]} 11. Bxa4 {[%clk 0:02:46]}  Rxa4 {[%clk 0:02:55]} 12. Qxa4 {[%clk 0:02:46]}  Nb4 {[%clk 0:02:55]} 13. Qb3 {[%clk 0:02:20]}  Nxd3 {[%clk 0:02:55]} 14. Re2 {[%clk 0:02:21]}  Bc6 {[%clk 0:02:28]} 15. g3 {[%clk 0:01:40]}  Qd7 {[%clk 0:02:14]} 16. Kg2 {[%clk 0:01:40]}  Nxf2 {[%clk 0:02:11]} 17. Rxf2 {[%clk 0:01:19]}  Bxf2 {[%clk 0:02:12]} 18. Kxf2 {[%clk 0:01:19]}  Qxh3 {[%clk 0:02:12]} 19. Nf1 {[%clk 0:01:20]}  Nxe4+ {[%clk 0:02:12]} 20. Kg1 {[%clk 0:01:01]}  Ng5 {[%clk 0:01:54]} 21. Bxg5 {[%clk 0:01:01]}  Bxf3 {[%clk 0:01:54]} 0-1


[Site "https://www.chess.com"]

[Event "Titled Tuesday Blitz February 07 Late 2023"]
[White "Aldokhin, Ivan"]
[Black "Yoo, Christopher Woojin"]
[WhiteFideId "24115720"]
[BlackFideId "30909694"]
[WhiteElo "2413"]
[BlackElo "2607"]
[Result "0-1"]
[Round "02"]
[TimeControl "180+2"]
[Date "2023.02.07"]
[WhiteClock "0:00:03"]
[BlackClock "0:00:03"]

1. e4 {[%clk 0:02:05]}  c6 {[%clk 0:02:56]} 2. Nc3 {[%clk 0:02:05]}  d5 {[%clk 0:02:56]} 3. Nf3 {[%clk 0:02:06]}  dxe4 {[%clk 0:02:50]} 4. Nxe4 {[%clk 0:02:07]}  Nf6 {[%clk 0:02:50]} 5. Nxf6+ {[%clk 0:02:07]}  exf6 {[%clk 0:02:47]} 6. d4 {[%clk 0:02:07]}  Bd6 {[%clk 0:02:48]} 7. Bc4 {[%clk 0:02:08]}  O-O {[%clk 0:02:48]} 8. O-O {[%clk 0:02:08]}  Bg4 {[%clk 0:02:42]} 9. h3 {[%clk 0:02:09]}  Bh5 {[%clk 0:02:35]} 10. g4 {[%clk 0:02:09]}  Bg6 {[%clk 0:02:33]} 11. Nh4 {[%clk 0:02:09]}  Nd7 {[%clk 0:02:29]} 12. Nxg6 {[%clk 0:02:09]}  hxg6 {[%clk 0:02:30]} 13. Re1 {[%clk 0:02:07]}  Qc7 {[%clk 0:02:28]} 14. Qf3 {[%clk 0:01:56]}  b5 {[%clk 0:02:11]} 15. Bb3 {[%clk 0:01:23]}  Rfe8 {[%clk 0:02:08]} 16. Bd2 {[%clk 0:01:22]}  Nb6 {[%clk 0:01:25]} 17. Rxe8+ {[%clk 0:01:21]}  Rxe8 {[%clk 0:01:19]} 18. Re1 {[%clk 0:01:21]}  Rxe1+ {[%clk 0:01:18]} 19. Bxe1 {[%clk 0:01:21]}  Qd7 {[%clk 0:00:51]} 20. Ba5 {[%clk 0:01:05]}  Nc4 {[%clk 0:00:47]} 21. Bxc4 {[%clk 0:00:50]}  bxc4 {[%clk 0:00:48]} 22. Qe2 {[%clk 0:00:44]}  f5 {[%clk 0:00:48]} 23. Kf1 {[%clk 0:00:31]}  Bf8 {[%clk 0:00:36]} 24. Qxc4 {[%clk 0:00:27]}  fxg4 {[%clk 0:00:32]} 25. hxg4 {[%clk 0:00:25]}  Qxg4 {[%clk 0:00:32]} 26. Qxc6 {[%clk 0:00:21]}  Qxd4 {[%clk 0:00:31]} 27. Bc3 {[%clk 0:00:19]}  Qd1+ {[%clk 0:00:31]} 28. Kg2 {[%clk 0:00:19]}  Qxc2 {[%clk 0:00:31]} 29. Qa8 {[%clk 0:00:19]}  Qf5 {[%clk 0:00:28]} 30. f3 {[%clk 0:00:12]}  Qg5+ {[%clk 0:00:23]} 31. Kf1 {[%clk 0:00:12]}  Qb5+ {[%clk 0:00:22]} 32. Kg2 {[%clk 0:00:08]}  a6 {[%clk 0:00:22]} 33. a3 {[%clk 0:00:07]}  a5 {[%clk 0:00:17]} 34. Qxa5 {[%clk 0:00:05]}  Qe2+ {[%clk 0:00:18]} 35. Kg3 {[%clk 0:00:03]}  Bd6+ {[%clk 0:00:17]} 36. f4 {[%clk 0:00:02]}  Qe3+ {[%clk 0:00:17]} 37. Kg2 {[%clk 0:00:02]}  Qe4+ {[%clk 0:00:18]} 38. Kf2 {[%clk 0:00:02]}  Qxf4+ {[%clk 0:00:16]} 39. Ke2 {[%clk 0:00:02]}  Qe4+ {[%clk 0:00:15]} 40. Kd2 {[%clk 0:00:03]}  Bf4+ {[%clk 0:00:08]} 41. Kd1 {[%clk 0:00:03]}  Qd3+ {[%clk 0:00:09]} 42. Bd2 {[%clk 0:00:03]}  g5 {[%clk 0:00:05]} 43. Qa8+ {[%clk 0:00:03]}  Kh7 {[%clk 0:00:05]} 44. Qh1+ {[%clk 0:00:03]}  Kg6 {[%clk 0:00:06]} 45. Qc6+ {[%clk 0:00:03]}  Kh5 {[%clk 0:00:02]} 46. Qh1+ {[%clk 0:00:03]}  Kg4 {[%clk 0:00:03]} 47. Qg2+ {[%clk 0:00:03]}  Kf5 {[%clk 0:00:03]} 48. Qe2 {[%clk 0:00:03]}  Qb1+ {[%clk 0:00:03]} 0-1


[Site "https://www.chess.com"]

[Event "Titled Tuesday Blitz February 07 Late 2023"]
[White "Cori T., Deysi"]
[Black "Dardha, Daniel"]
[WhiteFideId "3801934"]
[BlackFideId "240990"]
[WhiteElo "2362"]
[BlackElo "2631"]
[Result "0-1"]
[Round "02"]
[TimeControl "180+2"]
[Date "2023.02.07"]
[WhiteClock "0:00:01"]
[BlackClock "0:00:23"]

1. d4 {[%clk 0:03:00]}  Nf6 {[%clk 0:02:57]} 2. Nf3 {[%clk 0:03:00]}  g6 {[%clk 0:02:56]} 3. g3 {[%clk 0:03:00]}  b5 {[%clk 0:02:55]} 4. Bg2 {[%clk 0:02:53]}  Bb7 {[%clk 0:02:55]} 5. O-O {[%clk 0:02:53]}  Bg7 {[%clk 0:02:55]} 6. Bg5 {[%clk 0:02:53]}  O-O {[%clk 0:02:52]} 7. Nbd2 {[%clk 0:02:52]}  Ne4 {[%clk 0:02:52]} 8. Nxe4 {[%clk 0:02:52]}  Bxe4 {[%clk 0:02:53]} 9. Qd2 {[%clk 0:02:51]}  d6 {[%clk 0:02:50]} 10. a4 {[%clk 0:02:48]}  a6 {[%clk 0:02:46]} 11. Qe3 {[%clk 0:02:32]}  d5 {[%clk 0:02:11]} 12. axb5 {[%clk 0:02:24]}  Qd7 {[%clk 0:02:10]} 13. bxa6 {[%clk 0:02:19]}  Nxa6 {[%clk 0:02:11]} 14. c3 {[%clk 0:02:19]}  f6 {[%clk 0:02:09]} 15. Bh6 {[%clk 0:02:19]}  c6 {[%clk 0:02:03]} 16. Bxg7 {[%clk 0:02:13]}  Kxg7 {[%clk 0:02:04]} 17. Nd2 {[%clk 0:02:13]}  Bxg2 {[%clk 0:02:02]} 18. Kxg2 {[%clk 0:02:14]}  Nc7 {[%clk 0:02:02]} 19. b4 {[%clk 0:02:10]}  Qd6 {[%clk 0:01:51]} 20. f4 {[%clk 0:02:07]}  Qe6 {[%clk 0:01:37]} 21. Qxe6 {[%clk 0:02:03]}  Nxe6 {[%clk 0:01:38]} 22. e4 {[%clk 0:02:04]}  Nc7 {[%clk 0:01:36]} 23. Kf3 {[%clk 0:00:49]}  Nb5 {[%clk 0:01:36]} 24. exd5 {[%clk 0:00:47]}  cxd5 {[%clk 0:01:34]} 25. Nb3 {[%clk 0:00:47]}  Nxc3 {[%clk 0:01:32]} 26. Nc5 {[%clk 0:00:47]}  Kf7 {[%clk 0:01:30]} 27. Ke3 {[%clk 0:00:45]}  Rfb8 {[%clk 0:01:30]} 28. Kd3 {[%clk 0:00:44]}  Nb5 {[%clk 0:01:30]} 29. Ra5 {[%clk 0:00:19]}  Ra7 {[%clk 0:01:12]} 30. Rfa1 {[%clk 0:00:18]}  Rc7 {[%clk 0:01:13]} 31. Re1 {[%clk 0:00:16]}  Rb6 {[%clk 0:01:07]} 32. g4 {[%clk 0:00:11]}  Nd6 {[%clk 0:01:01]} 33. Ra4 {[%clk 0:00:10]}  Nc4 {[%clk 0:00:56]} 34. Kc3 {[%clk 0:00:10]}  Nd6 {[%clk 0:00:50]} 35. Kd3 {[%clk 0:00:09]}  Rc8 {[%clk 0:00:49]} 36. h3 {[%clk 0:00:08]}  Nb5 {[%clk 0:00:47]} 37. Ra2 {[%clk 0:00:06]}  h5 {[%clk 0:00:46]} 38. Rae2 {[%clk 0:00:06]}  Rc7 {[%clk 0:00:46]} 39. Re6 {[%clk 0:00:06]}  Rxe6 {[%clk 0:00:42]} 40. Nxe6 {[%clk 0:00:06]}  Rc3+ {[%clk 0:00:42]} 41. Kd2 {[%clk 0:00:06]}  Rxh3 {[%clk 0:00:41]} 42. Nd8+ {[%clk 0:00:06]}  Kf8 {[%clk 0:00:41]} 43. gxh5 {[%clk 0:00:04]}  gxh5 {[%clk 0:00:41]} 44. Nc6 {[%clk 0:00:05]}  h4 {[%clk 0:00:30]} 45. Rxe7 {[%clk 0:00:04]}  Nxd4 {[%clk 0:00:29]} 46. Rc7 {[%clk 0:00:03]}  Rh2+ {[%clk 0:00:23]} 47. Ke3 {[%clk 0:00:01]}  Nf5+ {[%clk 0:00:23]} 48. Kf3 {[%clk 0:00:01]}  Rc2 {[%clk 0:00:23]} 0-1


[Site "https://www.chess.com"]

[Event "Titled Tuesday Blitz February 07 Late 2023"]
[White "Makhnev, Denis"]
[Black "Goroshkov, Maksym"]
[WhiteFideId "13707647"]
[BlackFideId "14142716"]
[WhiteElo "2483"]
[BlackElo "2287"]
[Result "1-0"]
[Round "02"]
[TimeControl "180+2"]
[Date "2023.02.07"]
[WhiteClock "0:01:23"]
[BlackClock "0:01:58"]

1. d4 {[%clk 0:02:58]}  Nf6 {[%clk 0:02:59]} 2. c4 {[%clk 0:02:59]}  e5 {[%clk 0:02:59]} 3. dxe5 {[%clk 0:02:59]}  Ng4 {[%clk 0:03:00]} 4. Nf3 {[%clk 0:02:58]}  Nc6 {[%clk 0:03:00]} 5. Bf4 {[%clk 0:02:58]}  Bb4+ {[%clk 0:03:01]} 6. Nbd2 {[%clk 0:02:57]}  Qe7 {[%clk 0:03:02]} 7. a3 {[%clk 0:02:57]}  Ngxe5 {[%clk 0:03:02]} 8. Nxe5 {[%clk 0:02:58]}  Nxe5 {[%clk 0:03:03]} 9. e3 {[%clk 0:02:59]}  Bxd2+ {[%clk 0:03:03]} 10. Qxd2 {[%clk 0:02:59]}  d6 {[%clk 0:03:03]} 11. Qc3 {[%clk 0:02:59]}  b6 {[%clk 0:03:03]} 12. Be2 {[%clk 0:02:58]}  Bb7 {[%clk 0:03:04]} 13. O-O {[%clk 0:02:57]}  O-O {[%clk 0:03:04]} 14. Bg3 {[%clk 0:02:56]}  Rad8 {[%clk 0:03:00]} 15. f3 {[%clk 0:02:55]}  f5 {[%clk 0:02:58]} 16. Rae1 {[%clk 0:02:49]}  Qf6 {[%clk 0:02:54]} 17. Rc1 {[%clk 0:02:42]}  Rfe8 {[%clk 0:02:49]} 18. Rfe1 {[%clk 0:02:42]}  Nd7 {[%clk 0:02:45]} 19. b4 {[%clk 0:02:39]}  Re7 {[%clk 0:02:33]} 20. Qxf6 {[%clk 0:02:37]}  Nxf6 {[%clk 0:02:32]} 21. Bd3 {[%clk 0:02:37]}  g6 {[%clk 0:02:28]} 22. Bf1 {[%clk 0:02:09]}  Rde8 {[%clk 0:02:26]} 23. c5 {[%clk 0:01:44]}  dxc5 {[%clk 0:02:23]} 24. bxc5 {[%clk 0:01:44]}  Rxe3 {[%clk 0:02:22]} 25. Rxe3 {[%clk 0:01:45]}  Rxe3 {[%clk 0:02:23]} 26. c6 {[%clk 0:01:45]}  Bc8 {[%clk 0:02:18]} 27. Bxc7 {[%clk 0:01:45]}  Rxa3 {[%clk 0:02:18]} 28. Rd1 {[%clk 0:01:32]}  Be6 {[%clk 0:02:15]} 29. Be5 {[%clk 0:01:33]}  Kf7 {[%clk 0:02:11]} 30. c7 {[%clk 0:01:28]}  Ra2 {[%clk 0:02:07]} 31. Bc4 {[%clk 0:01:24]}  Rc2 {[%clk 0:02:00]} 32. c8=Q {[%clk 0:01:24]}  Rxc4 {[%clk 0:01:58]} 33. Qb7+ {[%clk 0:01:23]}  Nd7 {[%clk 0:01:58]} 34. Rxd7+ {[%clk 0:01:23]} 1-0


[Site "https://www.chess.com"]

[Event "Titled Tuesday Blitz February 07 Late 2023"]
[White "Atanasov, Anthony"]
[Black "Alekseenko, Kirill"]
[WhiteFideId "2623897"]
[BlackFideId "4135539"]
[WhiteElo "2368"]
[BlackElo "2686"]
[Result "0-1"]
[Round "02"]
[TimeControl "180+2"]
[Date "2023.02.07"]
[WhiteClock "0:00:01"]
[BlackClock "0:00:56"]

1. d4 {[%clk 0:03:00]}  d5 {[%clk 0:02:59]} 2. Bf4 {[%clk 0:02:59]}  Nf6 {[%clk 0:02:58]} 3. e3 {[%clk 0:02:58]}  e6 {[%clk 0:02:59]} 4. Nf3 {[%clk 0:02:58]}  c5 {[%clk 0:02:59]} 5. Nbd2 {[%clk 0:02:58]}  Nc6 {[%clk 0:03:00]} 6. c3 {[%clk 0:02:58]}  Be7 {[%clk 0:03:00]} 7. Bd3 {[%clk 0:02:58]}  O-O {[%clk 0:03:00]} 8. Ne5 {[%clk 0:02:59]}  Nd7 {[%clk 0:03:00]} 9. h4 {[%clk 0:02:59]}  f5 {[%clk 0:02:55]} 10. Ndf3 {[%clk 0:02:55]}  c4 {[%clk 0:02:52]} 11. Bc2 {[%clk 0:02:51]}  Nf6 {[%clk 0:02:43]} 12. Ng5 {[%clk 0:02:50]}  Qe8 {[%clk 0:02:28]} 13. h5 {[%clk 0:02:44]}  h6 {[%clk 0:02:22]} 14. Ng6 {[%clk 0:02:37]}  hxg5 {[%clk 0:02:19]} 15. Bxg5 {[%clk 0:02:35]}  Ne4 {[%clk 0:02:15]} 16. Bxe7 {[%clk 0:01:51]}  Nxe7 {[%clk 0:02:16]} 17. Nxf8 {[%clk 0:01:48]}  Qxf8 {[%clk 0:02:16]} 18. Bxe4 {[%clk 0:01:48]}  fxe4 {[%clk 0:02:15]} 19. Qg4 {[%clk 0:01:18]}  e5 {[%clk 0:01:55]} 20. Qg5 {[%clk 0:01:17]}  Qf6 {[%clk 0:01:48]} 21. Qxe5 {[%clk 0:01:11]}  Qxe5 {[%clk 0:01:48]} 22. dxe5 {[%clk 0:01:12]}  Nc6 {[%clk 0:01:49]} 23. h6 {[%clk 0:00:54]}  g6 {[%clk 0:01:47]} 24. f4 {[%clk 0:00:38]}  exf3 {[%clk 0:01:43]} 25. gxf3 {[%clk 0:00:39]}  Nxe5 {[%clk 0:01:43]} 26. Ke2 {[%clk 0:00:38]}  Bf5 {[%clk 0:01:42]} 27. Rag1 {[%clk 0:00:34]}  Bd3+ {[%clk 0:01:37]} 28. Kf2 {[%clk 0:00:33]}  Kh7 {[%clk 0:01:23]} 29. Rg5 {[%clk 0:00:28]}  Bf5 {[%clk 0:01:17]} 30. e4 {[%clk 0:00:15]}  dxe4 {[%clk 0:01:15]} 31. fxe4 {[%clk 0:00:16]}  Bxe4 {[%clk 0:01:06]} 32. Rh4 {[%clk 0:00:03]}  Nf3 {[%clk 0:00:56]} 33. Rxe4 {[%clk 0:00:01]}  Nxg5 {[%clk 0:00:56]} 34. Rxc4 {[%clk 0:00:01]}  Kxh6 {[%clk 0:00:55]} 35. Rc7 {[%clk 0:00:01]}  Rf8+ {[%clk 0:00:55]} 36. Kg2 {[%clk 0:00:01]}  Rf7 {[%clk 0:00:56]} 0-1


[Site "https://www.chess.com"]